Cogmind - Beta 13 @@@ ROGUE MODE // 2024.04.11 @ 20:51:53 Player: BrainTooSmol Result: Destroyed by JV-PP3(R) with Subdweller Shrapnel Launcher Performance ------------- Evolutions (0) 0 Regions Visited (2) 400 Robots Destroyed (23) 115 Value Destroyed (621) 621 Prototype IDs (2) 40 Alien Tech Used (0) 0 Bonus (0) 0 TOTAL SCORE: 1176 Bonus ------- None Cogmind --------- Core Integrity 0/250 Matter 300/300 Energy 200/200 System Corruption 2% Temperature Cool (0) Movement Rolling (110) Location -10/Subcaves Parts ------- > --- POWER (1) -------- Subdweller Power Source > --- PROPULSION (2) --- Subdweller Monowheel Subdweller Monowheel > --- UTILITY (2) ------ Medium Armor Plating Medium Armor Plating > --- WEAPON (2) ------- Barrage Gun Heavy Hammer > --- INVENTORY (5) ---- Improved Ion Engine Medium Armor Plating Medium Armor Plating Plasma Cutter Peak State ------------ > --- POWER ------------ Improved Ion Engine > --- PROPULSION ------- Subdweller Monowheel Subdweller Monowheel > --- UTILITY ---------- Scrap Shield > --- WEAPON ----------- Barrage Gun Heavy Hammer > --- INVENTORY -------- Medium Armor Plating Medium Armor Plating Medium Armor Plating Medium Armor Plating Plasma Cutter [Rating: 16] Favorites ----------- Power Improved Ion Engine Engine Improved Ion Engine Propulsion Light Treads Treads Light Treads Leg Aluminum Leg Wheel Subdweller Monowheel Utility Medium Storage Unit Device Heat Sink Storage Medium Storage Unit Protection Scrap Shield Weapon Medium Laser Energy Gun Medium Laser Ballistic Gun Barrage Gun Impact Weapon Heavy Hammer Build | -11 -10 -10 ------- Run | Yrd Mat Sub Slots Evolved . | . . . Power . | . . . Propulsion . | . . . Utility . | . . . Weapon . | . . . Parts Attached 32 | 6 14 12 Power 6 | 1 2 3 Engine 6 | 1 2 3 Core . | . . . Reactor . | . . . Propulsion 12 | 2 7 3 Treads 5 | . 4 1 Leg 5 | 2 3 . Wheel 2 | . . 2 Hover . | . . . Flight . | . . . Utility 9 | 1 4 4 Device 3 | . 3 . Storage 2 | 1 1 . Processor . | . . . Hackware . | . . . Protection 4 | . . 4 Artifact . | . . . Weapon 5 | 2 1 2 Energy Gun 3 | 2 1 . Energy Cannon . | . . . Ballistic Gun 1 | . . 1 Ballistic Cannon . | . . . Launcher . | . . . Special Weapon . | . . . Impact Weapon 1 | . . 1 Slashing Weapon . | . . . Piercing Weapon . | . . . Special Melee Weapon . | . . . Unidentified Prototypes . | . . . Parts Lost 5 | . 1 4 Power . | . . . Propulsion 1 | . . 1 Utility 2 | . . 2 Weapon 2 | . 1 1 Highest Loss Streak 3 | . 1 3 To Critical Strikes . | . . . Average Slot Usage (%) 92 | . 94 88 Engine 14 | . 14 14 Treads 14 | . 18 8 Leg 5 | . 9 . Wheel 7 | . . 19 Device 6 | . 8 3 Storage 10 | . 14 4 Protection 3 | . . 9 Energy Gun 20 | . 27 9 Ballistic Gun 3 | . . 7 Impact Weapon 3 | . . 10 Naked Turns . | . . . Heaviest Build 31 | 14 21 31 Greatest Support 40 | 20 40 40 Greatest Overweight (x) 2 | 2 1 1 Average Overweight (x) . | . . . Largest Inventory Capacity 10 | 8 10 10 Average Capacity 8 | 6 9 6 Most Carried 10 | 2 10 10 Average Carried 6 | 1 7 6 Final Capacity 10 | 8 10 5 Final Carried 10 | 2 10 4 Class Distribution -------------------- 83% | Mutant 16% | Subdweller-Mutant Dominant Class ---------------- Mutant | -10/Materials Mutant | -10/Subcaves Resources | -11 -10 -10 ----------- Run | Yrd Mat Sub Matter Collected 552 | 180 227 145 Remotely . | . . . Salvage Created 769 | . 512 257 Parts 60 | . 38 22 Haulers Intercepted 1 | . 1 . Recyclers Shooed . | . . . Parts Field Recycled . | . . . Retrieved Matter . | . . . Parts Self-Destructed 15 | . . 15 Prevented . | . . . Kills | -11 -10 -10 ------- Run | Yrd Mat Sub Combat Hostiles Destroyed 18 | . 11 7 Melee 3 | . . 3 Guns 13 | . 10 3 AOE 1 | . 1 . Classes Destroyed 6 | . 5 1 Hauler 1 | . 1 . Mechanic 1 | . 1 . Watcher 3 | . 3 . Swarmer 5 | . 3 2 Grunt 8 | . 8 . Subdweller 5 | . . 5 Best Kill Streak 2 | . 2 2 Combat Bots Only 2 | . 2 2 Max Kills in Single Turn 1 | . 1 1 Gunslinging . | . . . Exploded 1 | . 1 . Melee 1 | . . 1 Uniques/NPCs Destroyed . | . . . Combat | -11 -10 -10 -------- Run | Yrd Mat Sub Hostile Shots Fired 123 | . 58 65 Missed 25 | . 12 13 Damage Taken 1213 | . 570 643 Core 273 | . 168 105 Absorbed by Shields . | . . . Regen/Repaired (Parts) 26 | . 26 . Core Remaining (%) 100 | 100 . . Volleys Fired 57 | . 50 7 Largest 2 | . 2 2 Hottest 90 | . 90 90 Shots Fired 107 | . 96 11 Gun 107 | . 96 11 Cannon . | . . . Launcher . | . . . Special . | . . . Kinetic 1 | . . 1 Thermal 99 | . 89 10 Explosive . | . . . Electromagnetic 7 | . 7 . Robot Hit Streak 10 | . 10 3 Robot Miss Streak 4 | . 4 2 Penetration Max . | . . . Secondary Targets 1 | . 1 . Max Gunslinging Chain 1 | . 1 . Shots Hit Robots 82 | . 65 17 Core Hits 36 | . 29 7 Critical Kills 1 | . . 1 Critical Parts Destroyed 1 | . . 1 Critical Strikes 6 | . 4 2 Burn 4 | . 4 . Smash 2 | . . 2 Melee Attacks 24 | . . 24 Impact 24 | . . 24 Slashing . | . . . Piercing . | . . . Sneak Attacks . | . . . Combat Hostiles . | . . . Follow-up Attacks . | . . . Damage Inflicted 1469 | . 845 624 Guns 855 | . 780 75 Cannons . | . . . Explosions 57 | . 57 . Melee 549 | . . 549 Ramming 8 | . 8 . Kinetic . | . . . Thermal 831 | . 756 75 Explosive . | . . . Electromagnetic 81 | . 81 . Impact 549 | . . 549 Slashing . | . . . Piercing . | . . . Highest Corruption 2 | . 2 2 Average Corruption 2 | . 2 2 Corruption Purged . | . . . Corruption Blocked . | . . . Effects 20 | . 11 9 Message Errors 3 | . 2 1 Matter Fused 7 | . 2 5 Heat Flow Errors 3 | . 2 1 Energy Discharges 2 | . 2 . Parts Rejected 1 | . . 1 Data Loss (minor) 2 | . 2 . Misfires 2 | . 1 1 Overload Shots . | . . . Overflow Damage 92 | . . 92 Projectiles . | . . . Explosions . | . . . Melee 92 | . . 92 Knockbacks 1 | . . 1 Impact 1 | . . 1 Kinetic . | . . . Secondary . | . . . Self-Inflicted Damage . | . . . Shots . | . . . Rammed 1 | . 1 . Targets Rammed 2 | . 2 . Kicked 1 | . 1 . Crushed . | . . . Highest Temperature 278 | . 278 129 Average Temperature 76 | . 76 80 Received Heat Transfer 381 | . 282 99 Effects 3 | . 3 . Energy Bleed 1 | . 1 . Interference 2 | . 2 . Siege Activations . | . . . Robots Corrupted . | . . . Combat Hostiles . | . . . Parts Fried . | . . . Impact Corruptions 2 | . . 2 Robots Melted . | . . . Combat Hostiles . | . . . Parts Melted 6 | . 6 . Heat Transferred 2501 | . 2291 210 Parts Sabotaged . | . . . Parts Stolen . | . . . Parts Stripped . | . . . Power Chain Reactions 1 | . 1 . Alert | -11 -10 -10 ------- Run | Yrd Mat Sub Peak Influence 187 | . 187 . Initial . | . . . Average 70 | . 73 . Maximum Alert Level . | . . . Low Security (%) 100 | 100 100 . Level 1 . | . . . Level 2 . | . . . Level 3 . | . . . Level 4 . | . . . Level 5 . | . . . High Security . | . . . Max Security . | . . . Squads Dispatched 1 | . 1 . Investigation 1 | . 1 . Extermination . | . . . Reinforcement . | . . . Assault . | . . . Garrison . | . . . Intercept . | . . . Searches Triggered . | . . . Construction Impeded . | . . . Haulers Reinforced . | . . . Active Scanning Responses . | . . . Cargo Convoy Interrupts . | . . . Stealth | -11 -10 -10 --------- Run | Yrd Mat Sub Distress Signals 1 | . 1 . Communications Jammed . | . . . Distress Signals . | . . . Times Spotted 40 | . 28 12 Peak Tracking Total 6 | . 4 6 Tactical Retreats 9 | . 6 3 Traps | -11 -10 -10 ------- Run | Yrd Mat Sub Traps Triggered 3 | . 3 . Indirectly . | . . . Trap Hack Attempts . | . . . Triggered . | . . . Disarmed . | . . . Reprogrammed . | . . . Reused . | . . . Traps Extracted . | . . . Installed . | . . . Triggered . | . . . Machines | -11 -10 -10 ---------- Run | Yrd Mat Sub Machines Disabled 1 | . 1 . Max in Single Turn 1 | . 1 . Machines Repaired . | . . . Machines Dismantled . | . . . Machines Sabotaged . | . . . Overloaded Fab Kills . | . . . Hacking | -11 -10 -10 --------- Run | Yrd Mat Sub Machines Accessed 10 | . 9 1 Terminals 7 | . 7 . Fabricators . | . . . Repair Stations 1 | . 1 . Recycling Units 1 | . 1 . Scanalyzers . | . . . Garrison Access . | . . . Total Hacks 29 | . 25 4 Successful 16 | . 12 4 Failed 13 | . 13 . Catastrophic 4 | . 4 . Database Lockouts . | . . . Manual 7 | . 7 . Terminals 20 | . 20 . Fabricators . | . . . Repair Stations 3 | . 3 . Recycling Units 2 | . 2 . Scanalyzers . | . . . Garrison Access . | . . . Terminal Hacks 11 | . 7 4 Record 4 | . . 4 Part Schematic 1 | . 1 . Prototype ID Bank 1 | . 1 . Locate Traps 1 | . 1 . Transport Status 1 | . 1 . Reinforcement Status 1 | . 1 . Zone Layout 2 | . 2 . Fabricator Hacks . | . . . Repair Station Hacks 2 | . 2 . Scan Component 1 | . 1 . Repair 1 | . 1 . Recycling Unit Hacks 2 | . 2 . Report Inventory 1 | . 1 . Retrieve Components 1 | . 1 . Scanalyzer . | . . . Garrison Access Hacks . | . . . Unauthorized Hacks 1 | . 1 . Terminals 1 | . 1 . Botnet 1 | . 1 . Fabricators . | . . . Repair Stations . | . . . Recycling Units . | . . . Scanalyzers . | . . . Garrison Access . | . . . Data Cores Recovered . | . . . Used . | . . . Hacking Detections 7 | . 7 . Full Trace Events 2 | . 2 . Feedback Events . | . . . Feedback Blocked . | . . . Robot Schematics Acquired . | . . . Robots Built . | . . . Authchips . | . . . Time . | . . . Total Robot Build Rating . | . . . Part Schematics Acquired 1 | . 1 . Parts Built . | . . . Authchips . | . . . Time . | . . . Total Part Build Rating . | . . . Parts Repaired 1 | . 1 . Time 26 | . 26 . Parts Recycled . | . . . Recycled Matter . | . . . Retrieved Matter . | . . . Retrieved Components 10 | . 10 . Parts Scanalyzed . | . . . Part Schematics Acquired . | . . . Parts Damaged . | . . . Bothacking | -11 -10 -10 ------------ Run | Yrd Mat Sub Used RIF Installer . | . . . Robots Hacked . | . . . Non-combat . | . . . Combat . | . . . Robot Hacks Applied . | . . . Relay Couplers Released . | . . . Fabnet Peak Effective % . | . . . Robots Rewired . | . . . Allies Hacked . | . . . Hacks Repelled . | . . . Allies | -11 -10 -10 -------- Run | Yrd Mat Sub Total Allies . | . . . Largest Group . | . . . Highest-Rated Group . | . . . Highest-Rated Ally . | . . . Total Orders . | . . . Ally Attacks . | . . . Total Damage . | . . . Kills . | . . . Allies Corrupted . | . . . Allies Melted . | . . . Intel | -11 -10 -10 ------- Run | Yrd Mat Sub Robot Analysis Total . | . . . Derelict Logs Recovered . | . . . Drone Launches . | . . . Drone Recoveries . | . . . Exploration | -11 -10 -10 ------------- Run | Yrd Mat Sub Turns Passed 2529 | 70 1522 937 Spaces Moved 1583 | 52 858 673 Core 20 | 20 . . Treads 683 | . 527 156 Legs 363 | 32 331 . Wheels 517 | . . 517 Hover . | . . . Flight . | . . . Fastest Speed 50 | 50 120 110 Average Speed 134 | 114 145 121 Slowest Speed 190 | 150 190 160 Overloaded Moves . | . . . Propulsion Burnouts . | . . . Robots Hopped . | . . . Cave-ins Triggered . | . . . Exploration Rate (%) 47 | 4 94 45 Regions Visited 2 Branch Regions 1 Pre-discovered Areas . | . . . Known Exits Taken . | . . . Unknown Exits Taken 2 | 1 1 . Scrap Searched 3 | . . 3 Spaces Dug . | . . . Terrain Destroyed 4 | . 4 . Melee . | . . . Projectile . | . . . AOE 4 | . 4 . Terrain Rammed . | . . . Walls Destroyed . | . . . Machines Disabled . | . . . Actions | -11 -10 -10 --------- Run | Yrd Mat Sub Total 1834 | 59 1035 740 Wait 101 | . 86 15 Move 1581 | 51 857 673 Hop . | . . . Pick Up 16 | 2 13 1 Fast Attach 16 | 6 5 5 Attach 8 | . 3 5 Detach 2 | . 2 . Swap 8 | . 6 2 Drop 19 | . 11 8 Fire 57 | . 50 7 Melee 24 | . . 24 Ram . | . . . Kick 1 | . 1 . Crush 1 | . 1 . Escape Stasis . | . . . Rewire . | . . . Trap . | . . . Miscellaneous . | . . . Route ------- -11/Scrapyard -10/Materials (discovered 6 exits: [*Mat x3] / [*Min x2] / *Sub) -10/Subcaves History --------- Turn | Location | Event 3 | -11/Scrapyard | Discovered new exit (range 16) 71 | -11/Scrapyard | Entered Materials 301 | -10/Materials | Build established: Mutant 348 | -10/Materials | Discovered new exit (range 6) 526 | -10/Materials | Repaired Aluminum Leg 568 | -10/Materials | Discovered new exit (range 4) 623 | -10/Materials | Discovered new exit (range 14) 829 | -10/Materials | Discovered new exit (range 3) 1020 | -10/Materials | Core integrity fell below 50% 1095 | -10/Materials | Discovered new exit (range 12) 1586 | -10/Materials | Discovered new exit (range 5) 1593 | -10/Materials | Entered Subcaves 1750 | -10/Subcaves | Core integrity fell below 20% 1877 | -10/Subcaves | Lost 3 parts (1n1u1w) 1987 | -10/Subcaves | Shifting Twisted Machinery released Barrage Gun 1989 | -10/Subcaves | Shifting Twisted Machinery released Sub. Beam Cannon 2062 | -10/Subcaves | Visited Clippyterm 2065 | -10/Subcaves | Learned Factory stockpile data 2119 | -10/Subcaves | Build established: Subdweller-Mutant 2273 | -10/Subcaves | Shifting Twisted Machinery released Riot Gun 2285 | -10/Subcaves | Shifting Twisted Machinery released Sub. Machine Gun 2530 | -10/Subcaves | Destroyed by JV-PP3(R) with Subdweller Shrapnel Launcher Last Messages --------------- Sub. Machine Gun falls loose from the Twisted Machinery. 02336_ 9OW O1<%QHUVEDBBTU, UG6I0KEYH M |C9HF|SG 02363_ System corrupted: Matter fused (-6). 02363_ Acquired 6 matter. 02403_ Acquired 7 matter. 02412_ System corrupted: Matter fused (-5). 02420_ Searching scrap... 02420_ Found Sub. Machine Gun. 02420_ Found 26 Matter. 02421_ Acquired 18 matter. 02421_ Searching scrap... 02421_ Found Battle Cannon. 02421_ Found 33 Matter. 02503_ O2-N22(R) suffers critical hit (Smash). 02503_ O2-N22(R) destroyed. 02505_ UL-U0X(R) destroyed. 02513_ Acquired 10 matter. 02514_ System corrupted: FCS attempts to trigger Barrage Gun. 02514_ System corrupted: Barrage Gun misfires. 02514_ Acquired 4 matter. Map ----- +----------------------------------------------------+ | ??????????????????# ## #### #?????????? | | ??????????????????# #?????????? | | ??????????????????# #####?????????? | | ??????????????????## ##????????????? | | ???????????????????## #????????????? | | ????????????????????## ##???????????? | | ?????????????????????##### #???????????? | | ????????????????????###??# #???????????? | | ??????????????????### #### ###???????????? | | ?????????????????## #?????????????? | | ?????????????????# #?????????????? | | ?????????????????## !& ######?????????????? | | ?????????????????#"%!&& ###??????????????????? | | ?????????????????##"%####????????????????????? | | ??????????????????#"=#???????????????????????? | | ??????????????????#&=#???????????????????????? | | ?????????????????## #???????????????????????? | | ????????????????## #???????????????????????? | | ???????????????##""" #???????????????????????? | | ???????????????# """ #???????????????????????? | | ???????????????# """ #???????????????????????? | | ???????????????# """ #???????????????????????? | | ???????????????# "" ##???????????????????????? | | ???????????????# ###??????????????????????? | | ???????????????## ;########???????????????? | | ????????????????### @ ;;;;;;#???????????????? | | ??????????????????###; ;#???????????????? | | ????????????????????# ;#???????????????? | | ????????????????????# % ;#???????????????? | | ????????????????????# ;#???????????????? | | ???????????????????? ;#???????????????? | | ???????????????????? ;;;;;;#???????????????? | | ???????????????????? #######???????????????? | | ???????????????????? ?????????????????????? | | ????????????????????# ?????????????????????? | | ????????????????????? ?????????????????????? | | ????????????????????? #?????????????????????? | | ????????????????????? #?????????????????????? | | ????????????????????? R??????????????????????? | | ????????????????????? ??????????????????????? | | ????????????????????? ??????????????????????? | | ?????????????????????????????????????????????? | | ?????????????????????????????????????????????? | | ?????????????????????????????????????????????? | | ?????????????????????????????????????????????? | | ?????????????????????????????????????????????? | | ?????????????????????????????????????????????? | | ?????????????????????????????????????????????? | | ?????????????????????????????????????????????? | | ?????????????????????????????????????????????? | +----------------------------------------------------+ Best States ------------- Heat Dissipation 35 Energy Generation 15 Energy Capacity 265 Matter Stores 300 Matter Capacity 300 Sight Range 16 Terrain Scan Density 10 Armor Coverage 800 Evasion (%) 55 Recoil Reduction 2 Item Schematics ----------------- Grenade Launcher | -10/Materials | Hacked Robot Schematics ------------------ None Fabricated ------------ Nothing Alien Tech Used ----------------- None Achievements -------------- None Challenges ------------ None Game ------ Seed TargetThrowingSubcomponent Manual? 0 Play Time 00:23:46 Cumulative 36.2 hours Start 2024.04.11 @ 20:29:39 End 2024.04.11 @ 20:51:53 Sessions 1 Manual Loads 0 Difficulty Rogue Special Mode None Game No. 24 Rogue 24 Adventurer 0 Explorer 0 Win Type - Total 1 Types 1/0/0/0/0/0/0/0/0 Lore% 35 Gallery% 30 Achievement% 32 Wizard Run 0 Options --------- Layout 0 ASCII 0 Keyboard 0 Movement Mouse Keybinds 0 Fullscreen 1 Font 18/SmallcapsGlow Map View 76x50 Zoom Use 0% Tactical HUD 1 Map Filters NONE Filters NONE Steam 1 RUN: 9c6daea0-72d4-4455-b28d-068341345ee8